bitfinex-derivatives/quotes_BTCF0:USTF0_20241203
["timestamp","ask_amount","ask_price","bid_price","bid_amount"]
[1733209211043,0.052393,95738.0,95736.0,0.16]
[1733209211543,0.052393,95738.0,95737.0,0.16]
[1733209212443,0.057393,95738.0,95737.0,0.16]
[1733209213244,0.052393,95738.0,95737.0,0.16]
[1733209213434,0.00518,95738.0,95736.0,0.16]
[1733209213638,0.00518,95738.0,95711.0,0.46062739]
[1733209213639,0.3608,95737.0,95711.0,0.46062739]
[1733209213838,0.052223,95718.0,95717.0,0.16]
[1733209214041,0.052226,95714.0,95711.0,0.46058739]
[1733209214247,0.052226,95714.0,95712.0,0.16]
[1733209215037,0.052226,95713.0,95711.0,0.00056]
[1733209215344,0.0327,95716.0,95709.0,0.16]
[1733209215545,0.052231,95705.0,95701.0,0.3608]
[1733209215737,0.052231,95705.0,95702.0,0.16]
[1733209215934,0.0104,95707.0,95702.0,0.16]
[1733209216142,0.0104,95707.0,95701.0,0.3608]
[1733209216346,0.0104,95707.0,95702.0,0.16]
[1733209217341,0.0104,95707.0,95702.0,0.164]
[1733209217646,0.0104,95707.0,95703.0,0.052232]
[1733209218454,0.0104,95707.0,95702.0,0.164]
[1733209218455,0.052232,95703.0,95702.0,0.004]
[1733209219036,0.052233,95700.0,95699.0,0.16]
[1733209219552,0.052235,95697.0,95696.0,0.0026]
[1733209219751,0.3608,95700.0,95696.0,0.16]
[1733209219953,0.11243521,95699.0,95696.0,0.16]
[1733209220246,0.052236,95694.0,95693.0,0.00056]
[1733209220445,0.052238,95692.0,95690.0,0.0026]
[1733209220648,0.052238,95692.0,95688.0,0.16]
[1733209221044,0.052238,95692.0,95685.0,0.0026]
[1733209221341,0.052238,95691.0,95676.0,0.0157]
[1733209221547,0.052246,95676.0,95675.0,0.00056]
[1733209221743,0.052255,95661.0,95659.0,0.0157]
[1733209222048,0.052255,95660.0,95659.0,0.16]
[1733209222242,0.052255,95660.0,95658.0,0.43968]
[1733209222243,0.0523486,95660.0,95658.0,0.00056]
[1733209222444,0.052256,95658.0,95657.0,0.16]
[1733209222655,9.36e-05,95660.0,95643.0,0.3765]
[1733209222842,0.052261,95649.0,95644.0,0.16004]
[1733209223048,0.413059,95653.0,95644.0,0.16004]
[1733209223351,0.3608,95653.0,95644.0,0.16004]
[1733209223754,0.052262,95648.0,95644.0,0.16004]
[1733209223951,0.052262,95648.0,95643.0,0.15932]
[1733209224254,0.0104,95650.0,95641.0,0.00056]
[1733209224558,0.052265,95642.0,95631.0,0.15932]
[1733209224853,0.052266,95640.0,95632.0,0.15932]
[1733209225152,0.052266,95640.0,95628.0,0.15932]
[1733209225744,0.3712,95643.0,95628.0,0.15932]
[1733209225954,0.3712,95643.0,95629.0,0.052272]
[1733209226158,0.0104,95643.0,95635.0,0.02092288]
[1733209226348,0.0104,95643.0,95636.0,0.00507719]
[1733209226661,0.04303,95642.0,95637.0,0.15936]
[1733209226954,0.00836,95641.0,95637.0,0.15936]
[1733209227351,0.00836,95641.0,95639.0,0.052266]
[1733209227952,0.04303,95642.0,95640.0,0.3608]
[1733209228153,0.04303,95642.0,95641.0,0.085165]
[1733209228757,0.04303,95642.0,95641.0,0.052265]
[1733209228962,0.04303,95642.0,95640.0,0.3608]
[1733209229960,0.05139,95642.0,95641.0,0.003]
[1733209231661,0.05139,95642.0,95638.0,0.052267]
[1733209231861,0.05139,95642.0,95639.0,0.211666]
[1733209232058,0.05139,95642.0,95640.0,0.003]
[1733209232358,0.3608,95641.0,95622.0,0.0157]
[1733209232661,0.3608,95641.0,95615.0,0.0209271]
[1733209232662,0.413074,95625.0,95616.0,0.0157]
[1733209232958,0.413074,95625.0,95615.0,0.0209271]
[1733209233259,0.413074,95625.0,95611.0,0.3608]
[1733209233463,0.77398136,95625.0,95617.0,0.1594]
[1733209234063,0.00010736,95625.0,95624.0,0.052275]
[1733209234448,0.00010736,95625.0,95616.0,0.3608]
[1733209234748,0.00010736,95625.0,95623.0,0.052275]
[1733209235160,0.00010736,95625.0,95624.0,0.3608]
[1733209235457,0.00110736,95625.0,95624.0,0.5202]
[1733209235758,0.00110736,95625.0,95624.0,0.3608]
[1733209235967,0.0104,95629.0,95628.0,0.052273]
[1733209236153,1e-08,95629.0,95628.0,0.413073]
[1733209236758,0.07319001,95629.0,95628.0,0.413073]
[1733209236960,0.07325612,95629.0,95628.0,0.572473]
[1733209238162,0.07525612,95629.0,95628.0,0.572473]
[1733209238760,0.07525612,95629.0,95628.0,0.413073]
[1733209239168,0.07525612,95629.0,95628.0,0.3608]
[1733209239458,0.11862612,95629.0,95628.0,0.3608]
[1733209239858,0.11862612,95629.0,95628.0,0.5202]
[1733209240956,0.11862612,95629.0,95628.0,0.52024]
[1733209241250,0.11862612,95629.0,95628.0,0.3608]
[1733209241459,0.11862612,95629.0,95622.0,0.0209271]
[1733209241460,0.052275,95624.0,95622.0,0.0209271]
[1733209242468,0.052275,95624.0,95622.0,0.1803671]
[1733209243053,0.0026,95626.0,95623.0,0.15944]
[1733209243558,0.052274,95625.0,95623.0,0.15944]
[1733209243758,0.052274,95625.0,95624.0,0.15944]
[1733209243955,0.0026,95626.0,95624.0,0.15944]
[1733209244160,0.0026,95626.0,95624.0,0.211715]
[1733209244360,0.0026,95626.0,95624.0,0.052275]
[1733209244666,0.00836,95643.0,95641.0,0.052265]
[1733209244965,0.00836,95643.0,95641.0,0.572505]
[1733209245365,0.0157,95661.0,95659.0,0.052255]
[1733209245662,0.05225,95669.0,95641.0,0.572505]
[1733209245663,0.22,95668.0,95660.0,0.52024]
[1733209245858,0.22,95668.0,95661.0,0.15944]
[1733209246161,0.22,95668.0,95666.0,0.052252]
[1733209246363,0.16299,95677.0,95661.0,0.15944]
[1733209246564,0.052249,95672.0,95671.0,0.3608]
[1733209246866,0.16299,95677.0,95676.0,0.052246]
[1733209255261,0.0105,95693.0,95692.0,0.052237]
[1733209255463,0.052229,95707.0,95700.0,0.052233]
[1733209255660,0.052229,95707.0,95699.0,0.0105]
[1733209255960,0.22,95706.0,95699.0,0.0105]
[1733209256570,0.22,95706.0,95702.0,0.052231]
[1733209256866,0.22,95706.0,95703.0,0.15644]
[1733209257066,0.00245,95705.0,95703.0,0.15644]
[1733209259867,0.00945,95705.0,95704.0,0.052231]
[1733209261066,0.00945,95705.0,95704.0,0.053231]
[1733209262570,0.00945,95705.0,95704.0,0.001]
[1733209262771,0.06168,95705.0,95704.0,0.1574]
[1733209262970,0.06168,95705.0,95704.0,0.001]
[1733209263166,0.00945,95705.0,95704.0,0.1574]
[1733209263477,0.00945,95705.0,95704.0,0.209631]
[1733209265476,0.00945,95705.0,95704.0,0.1574]
[1733209266064,0.00945,95705.0,95704.0,0.001]
[1733209266767,0.00945,95705.0,95699.0,0.0105]
[1733209266768,0.26045,95705.0,95699.0,0.0105]
[1733209267074,0.052234,95698.0,95691.0,0.00064]
[1733209267376,0.3608,95700.0,95688.0,0.5172]
[1733209267377,0.052239,95690.0,95688.0,0.51776]
[1733209267575,0.052239,95690.0,95688.0,0.5172]
[1733209267576,0.048539,95690.0,95688.0,0.5172]
[1733209268377,0.05224,95688.0,95687.0,0.1564]
[1733209268770,0.3608,95689.0,95674.0,0.0052]
[1733209268771,0.052243,95682.0,95681.0,0.02091053]
[1733209268973,0.052243,95682.0,95668.0,0.0052]
[1733209269267,0.052243,95682.0,95666.0,0.021]
[1733209269277,0.052254,95662.0,95661.0,0.00156791]
[1733209270675,0.0308,95667.0,95661.0,0.00556791]
[1733209270878,0.3608,95669.0,95663.0,0.052253]
[1733209271077,0.3608,95678.0,95664.0,0.1564]
[1733209271774,0.3608,95678.0,95667.0,0.052251]
[1733209271976,0.3608,95678.0,95661.0,0.00556791]
[1733209271977,0.3608,95678.0,95674.0,0.052247]
[1733209272278,0.3608,95678.0,95675.0,0.1564]
[1733209272679,0.3608,95678.0,95668.0,0.3608]
[1733209272875,0.3618,95678.0,95669.0,0.1564]
[1733209273476,0.3618,95678.0,95675.0,0.052247]
[1733209273784,0.00243,95677.0,95675.0,0.052247]
[1733209274480,0.00243,95677.0,95676.0,0.3608]
[1733209275781,0.30832606,95693.0,95692.0,0.052238]
[1733209276085,0.30832606,95693.0,95692.0,1.008718]
[1733209276482,0.30832606,95693.0,95692.0,1.369518]
[1733209278178,0.31232606,95693.0,95692.0,1.369518]
[1733209279085,0.38547606,95693.0,95692.0,1.369518]
[1733209280586,0.07715,95693.0,95692.0,1.369518]
[1733209281797,0.0104,95697.0,95696.0,0.052235]
[1733209282089,0.0262,95714.0,95713.0,0.052226]
[1733209282386,0.0311,95733.0,95713.0,0.5172]
[1733209282581,0.0026,95724.0,95722.0,0.052221]
[1733209282777,0.0311,95733.0,95729.0,0.052217]
[1733209282778,0.0026,95731.0,95729.0,0.052217]
[1733209283097,0.22,95736.0,95731.0,0.052216]
[1733209283390,0.22,95736.0,95729.0,0.3608]
[1733209283687,0.22,95736.0,95734.0,0.052214]
[1733209283890,0.22,95736.0,95735.0,0.15636]
[1733209286882,0.0611,95744.0,95741.0,0.052211]
[1733209287083,0.0611,95744.0,95739.0,0.052212]
[1733209287482,0.22,95743.0,95739.0,0.052212]
[1733209287678,0.22,95743.0,95740.0,0.052211]
[1733209288188,0.0611,95744.0,95741.0,0.05221]
[1733209288580,0.0661,95744.0,95741.0,0.05321]
[1733209288784,0.0361,95744.0,95742.0,0.05221]
[1733209288984,0.0361,95744.0,95741.0,0.001]
[1733209289191,0.21,95743.0,95742.0,0.05221]
[1733209290189,0.21,95743.0,95742.0,0.05321]
[1733209291690,0.216,95743.0,95742.0,0.20669]
[1733209293696,0.006,95743.0,95742.0,0.20669]
[1733209293891,0.006,95743.0,95742.0,0.56749]
[1733209295300,0.21,95751.0,95750.0,0.052206]
[1733209295493,0.21,95751.0,95750.0,0.413006]
[1733209296602,0.214,95751.0,95750.0,0.413006]
[1733209298303,0.21,95751.0,95750.0,0.413006]
[1733209298500,0.213,95751.0,95750.0,0.413006]
[1733209300502,0.05222,95775.0,95750.0,0.413006]
[1733209300503,0.0262,95768.0,95767.0,0.052197]
[1733209300702,0.0104,95784.0,95778.0,0.052191]
[1733209300703,0.0309,95781.0,95778.0,0.052191]
[1733209301010,0.0309,95781.0,95778.0,0.566431]
[1733209302294,0.083089,95781.0,95778.0,0.566431]
[1733209302491,0.31332606,95779.0,95778.0,0.567431]
[1733209304610,0.005,95779.0,95778.0,0.567431]
[1733209305107,0.005,95779.0,95778.0,0.413991]
[1733209305407,0.005,95779.0,95778.0,0.567431]
[1733209306305,0.05719,95779.0,95778.0,0.413991]
[1733209306502,0.05719,95779.0,95778.0,0.567431]
[1733209307106,0.05719,95779.0,95778.0,0.3618]
[1733209307309,0.05719,95779.0,95778.0,0.15444]
[1733209307310,0.41799,95779.0,95778.0,0.15444]
[1733209307501,0.50691833,95779.0,95778.0,0.15444]
[1733209307897,0.62799,95779.0,95778.0,0.15444]
[1733209308199,0.62799,95779.0,95778.0,0.001]
[1733209308200,0.71732353,95779.0,95778.0,0.001]
[1733209308510,0.14652353,95779.0,95778.0,0.001]
[1733209308806,0.14585353,95779.0,95778.0,0.001]
[1733209310106,0.05652,95779.0,95778.0,0.001]
[1733209316418,0.1296,95779.0,95778.0,0.001]
[1733209316819,0.07741,95779.0,95775.0,0.08664524]
[1733209317117,0.052191,95778.0,95776.0,0.052192]
[1733209317319,0.052191,95778.0,95777.0,0.15096]
[1733209317521,0.07741,95779.0,95778.0,0.052191]
[1733209317725,0.07741,95779.0,95777.0,0.05943339]
[1733209318015,0.07741,95779.0,95778.0,0.15096]
[1733209318224,0.07741,95779.0,95778.0,0.563951]
[1733209318420,0.1262,95800.0,95796.0,0.05218]
[1733209318615,0.09613562,95798.0,95796.0,0.05218]
[1733209318812,0.1,95800.0,95799.0,0.052179]
[1733209320312,0.3608,95821.0,95817.0,0.052169]
[1733209320509,0.3608,95821.0,95799.0,0.052179]
[1733209320510,0.09610912,95818.0,95814.0,0.3608]
[1733209320717,0.09610912,95817.0,95815.0,0.15096]
[1733209320909,0.09610912,95816.0,95815.0,0.15096]
[1733209321108,0.09610627,95816.0,95815.0,0.15096]
[1733209321310,0.09610627,95816.0,95814.0,0.3608]
[1733209321612,0.052175,95807.0,95806.0,0.3608]
[1733209322618,0.052175,95807.0,95804.0,0.15092]
[1733209322619,0.052176,95805.0,95804.0,0.15092]
[1733209322930,0.004,95807.0,95804.0,0.15092]
[1733209323519,0.032,95806.0,95804.0,0.15092]
[1733209323817,0.084175,95806.0,95804.0,0.15092]
[1733209324012,0.052177,95803.0,95797.0,0.00156568]
[1733209324219,0.052179,95799.0,95798.0,0.15092]
[1733209324810,0.052179,95799.0,95797.0,0.00156568]
[1733209325013,0.052179,95799.0,95783.0,0.0052]
[1733209325014,0.052187,95784.0,95783.0,0.0052]
[1733209325224,0.052187,95784.0,95772.0,0.15092]
[1733209325225,0.052193,95774.0,95772.0,0.15092]
[1733209325424,0.11432692,95782.0,95761.0,0.052199]
[1733209325631,0.052197,95766.0,95757.0,0.3608]
[1733209325922,0.052197,95766.0,95759.0,0.15092]
[1733209325923,0.052198,95766.0,95759.0,0.15092]
[1733209326230,0.052199,95764.0,95759.0,0.15092]
[1733209326721,0.052199,95764.0,95758.0,0.052201]
[1733209326923,0.052199,95764.0,95759.0,0.15092]
[1733209327616,0.052199,95764.0,95758.0,0.052201]
[1733209327820,0.052199,95764.0,95759.0,0.15092]
[1733209328015,0.052199,95764.0,95758.0,0.052201]
[1733209328016,0.052199,95764.0,95760.0,0.15092]
[1733209328316,0.052199,95764.0,95755.0,0.43936]
[1733209328317,0.3712,95766.0,95755.0,0.43936]
[1733209328520,0.052206,95750.0,95749.0,0.15092]
[1733209329112,0.034476,95750.0,95749.0,0.15092]
[1733209329519,0.0104,95754.0,95740.0,0.11432692]
[1733209329720,0.052204,95754.0,95745.0,0.052208]
[1733209330122,0.3608,95756.0,95745.0,0.052208]
[1733209330123,0.052204,95753.0,95745.0,0.052208]
[1733209330726,0.052205,95752.0,95745.0,0.052208]
[1733209331112,0.052205,95752.0,95749.0,0.001]
[1733209331417,0.052206,95751.0,95750.0,0.15092]
[1733209331618,0.121096,95751.0,95750.0,0.15092]
[1733209332019,0.052208,95746.0,95745.0,0.002]
[1733209332217,0.06889,95751.0,95745.0,0.15292]
[1733209332523,0.06889,95751.0,95745.0,0.15092]
[1733209332821,0.06889,95751.0,95750.0,0.001]
[1733209334223,0.121096,95751.0,95745.0,0.15292]
[1733209334429,0.121096,95751.0,95745.0,0.205128]
[1733209334627,0.06889,95751.0,95750.0,0.052206]
[1733209335117,0.06889,95751.0,95750.0,0.001]
[1733209336028,0.06889,95751.0,95750.0,0.15196]
[1733209337826,0.06889,95751.0,95742.0,0.0026]
[1733209338021,0.41301,95743.0,95742.0,0.0026]
[1733209338220,0.052211,95740.0,95739.0,0.00082]
[1733209338623,0.35838128,95740.0,95739.0,0.00082]
[1733209338830,0.052214,95735.0,95734.0,0.0026]
[1733209339024,0.052217,95730.0,95729.0,0.0026]
[1733209339324,0.052217,95730.0,95725.0,0.00156665]
[1733209339325,0.052219,95726.0,95725.0,0.00156665]
[1733209341435,0.052219,95726.0,95722.0,0.0026]
[1733209341436,0.05222,95724.0,95722.0,0.0026]
[1733209341618,0.052222,95721.0,95720.0,0.0104]
[1733209341928,0.052222,95720.0,95719.0,0.0104]
[1733209342118,0.052222,95720.0,95704.0,0.15096]
[1733209342119,0.3608,95721.0,95716.0,0.0078]
[1733209342319,0.00010192,95720.0,95716.0,0.0078]
[1733209342526,0.052223,95719.0,95716.0,0.0078]
[1733209343226,0.052224,95718.0,95716.0,0.0078]
[1733209343535,0.00010192,95720.0,95716.0,0.0078]
[1733209343735,0.00010192,95720.0,95717.0,0.151]
[1733209344137,0.00010192,95720.0,95718.0,0.3608]
[1733209344334,0.00010192,95720.0,95719.0,0.052223]
[1733209344532,0.00010192,95720.0,95719.0,0.083323]
[1733209344729,0.0262,95741.0,95719.0,0.0311]
[1733209345046,0.3911,95749.0,95719.0,0.0311]
[1733209345047,0.052215,95734.0,95732.0,0.3608]
[1733209345224,0.052215,95734.0,95733.0,0.151]
[1733209345424,0.052219,95727.0,95719.0,0.0311]
[1733209345628,0.3608,95738.0,95717.0,0.001]
[1733209345629,0.3608,95728.0,95717.0,0.001]
[1733209345837,0.031,95726.0,95717.0,0.001]
[1733209346231,0.052223,95718.0,95717.0,0.001]
[1733209346923,0.052223,95718.0,95711.0,0.15176]
[1733209347528,0.3608,95720.0,95713.0,0.052226]
[1733209347729,0.3608,95720.0,95711.0,0.15176]
[1733209348030,0.3608,95720.0,95717.0,0.052224]
[1733209348435,0.052216,95732.0,95718.0,0.3608]
[1733209348738,0.052218,95728.0,95719.0,0.052222]
[1733209349033,0.05222,95724.0,95718.0,0.3608]
[1733209349432,0.0339,95724.0,95718.0,0.3608]
[1733209350225,0.052216,95732.0,95718.0,0.3608]
[1733209350432,0.0306,95736.0,95719.0,0.052222]
[1733209350734,0.052219,95727.0,95719.0,0.052222]
[1733209351338,0.3608,95728.0,95719.0,0.052222]
[1733209351938,0.3608,95728.0,95720.0,0.15176]
[1733209352237,0.2424,95737.0,95726.0,0.3608]
[1733209352238,0.21,95737.0,95726.0,0.3608]
[1733209352440,0.21,95737.0,95730.0,0.052217]
[1733209352737,0.21,95737.0,95731.0,0.15176]
[1733209353141,0.052214,95735.0,95731.0,0.15176]
[1733209353439,0.21,95737.0,95731.0,0.15176]
[1733209353440,0.052215,95734.0,95731.0,0.15176]
[1733209353742,0.052216,95732.0,95731.0,0.15176]
[1733209353933,0.06888,95734.0,95726.0,0.3608]
[1733209353934,0.052218,95728.0,95726.0,0.3608]
[1733209354127,0.052218,95728.0,95727.0,0.15176]
[1733209354533,0.052218,95728.0,95726.0,0.3608]
[1733209354936,0.052218,95728.0,95721.0,0.10489082]
[1733209354937,0.06888,95734.0,95721.0,0.0329]
[1733209355137,0.052222,95720.0,95714.0,0.07313416]
[1733209355343,0.06888,95734.0,95706.0,0.085329]
[1733209355344,0.052224,95717.0,95706.0,0.085329]
[1733209355539,0.052224,95717.0,95708.0,0.15176]
[1733209355938,0.262224,95717.0,95708.0,0.15176]
[1733209356244,0.262224,95717.0,95699.0,0.3608]
[1733209356245,0.7192302,95717.0,95699.0,0.3608]
[1733209356551,0.052233,95701.0,95699.0,0.3608]
[1733209356734,0.052233,95701.0,95686.0,0.00156755]
[1733209357044,0.05224,95687.0,95686.0,0.00156755]
[1733209358143,0.052239,95690.0,95686.0,0.00156755]
[1733209358339,0.05224,95687.0,95686.0,0.00156755]
[1733209359740,0.001,95687.0,95686.0,0.00156755]
[1733209360543,0.05224,95688.0,95686.0,0.00156755]
[1733209360936,0.001,95687.0,95686.0,0.00156755]
[1733209361745,0.0026,95700.0,95686.0,0.00156755]
[1733209361746,0.001,95688.0,95686.0,0.00156755]
[1733209361947,0.001,95688.0,95687.0,0.1518]
[1733209362447,0.001,95688.0,95686.0,0.00156755]
[1733209362448,0.05224,95687.0,95686.0,0.00156755]
[1733209363039,0.001,95688.0,95686.0,0.00156755]
[1733209363349,0.3608,95691.0,95686.0,0.00156755]
[1733209363350,0.001,95687.0,95686.0,0.00156755]
[1733209364354,0.052235,95697.0,95686.0,0.00156755]
[1733209364355,0.001,95688.0,95686.0,0.00156755]
[1733209364749,0.001,95688.0,95687.0,0.0333]
[1733209364949,0.001,95688.0,95687.0,0.08554]
[1733209365343,0.001,95688.0,95687.0,0.11834]
[1733209366354,0.0026,95700.0,95687.0,0.11834]
[1733209366355,0.0026,95700.0,95699.0,0.052234]
[1733209366541,0.3608,95713.0,95699.0,0.15184]
[1733209366542,0.0026,95711.0,95699.0,0.15184]
[1733209366738,0.0104,95708.0,95703.0,0.0026]
[1733209366946,0.052231,95704.0,95703.0,0.0026]
[1733209367137,0.262231,95704.0,95703.0,0.0026]
[1733209368058,0.21,95704.0,95703.0,0.0026]
[1733209369347,0.0104,95708.0,95706.0,0.05223]
[1733209369744,0.054231,95704.0,95703.0,0.0026]
[1733209369947,0.415031,95704.0,95703.0,0.0026]
[1733209370541,0.623031,95704.0,95703.0,0.0026]
[1733209371338,0.71924826,95704.0,95703.0,0.0026]
[1733209371652,0.625031,95704.0,95703.0,0.0026]
[1733209372658,0.625031,95704.0,95684.0,8.632e-05]
[1733209372659,0.052239,95689.0,95684.0,8.632e-05]
[1733209372953,0.052239,95689.0,95686.0,0.00156755]
[1733209372954,0.05224,95687.0,95686.0,0.00156755]
[1733209373546,0.05224,95687.0,95684.0,8.632e-05]
[1733209373547,0.26224,95687.0,95684.0,8.632e-05]
[1733209373854,0.26224,95687.0,95677.0,0.00044]
[1733209373855,0.052245,95678.0,95677.0,0.00044]
[1733209374059,0.413045,95678.0,95677.0,0.00044]
[1733209374747,0.481945,95678.0,95677.0,0.00044]
[1733209374947,0.48204104,95678.0,95677.0,0.00044]
[1733209375968,0.12124104,95678.0,95677.0,0.00044]
[1733209376660,0.12124104,95678.0,95677.0,0.00144]
[1733209381068,0.06899604,95678.0,95677.0,0.00144]
[1733209381359,0.06899604,95678.0,95677.0,0.001]
[1733209381656,0.06899604,95678.0,95677.0,0.15128]
[1733209382054,0.06899604,95678.0,95677.0,0.51208]
[1733209382565,0.06899604,95678.0,95677.0,0.3618]
[1733209384063,0.06899604,95678.0,95677.0,0.001]
[1733209384365,0.10119604,95678.0,95677.0,0.001]
[1733209384666,0.10119604,95678.0,95664.0,0.0052]
[1733209384667,0.052252,95665.0,95664.0,0.0052]
[1733209384851,0.052252,95665.0,95659.0,0.15028]
[1733209384852,0.3608,95667.0,95659.0,0.15028]
[1733209385256,0.3608,95667.0,95651.0,0.0316]
[1733209385453,0.0104,95663.0,95659.0,0.052255]
[1733209385659,0.0104,95663.0,95652.0,0.052259]
[1733209385863,0.052255,95660.0,95657.0,0.15028]
[1733209386061,0.0104,95663.0,95657.0,0.15028]
[1733209386062,0.052256,95659.0,95657.0,0.15028]
[1733209387056,0.0114,95663.0,95657.0,0.15028]
[1733209387369,0.052255,95660.0,95657.0,0.15028]
[1733209387562,0.0114,95663.0,95649.0,0.41462914]
[1733209387563,0.052257,95657.0,95649.0,0.41462914]
[1733209387868,0.052259,95652.0,95649.0,0.36236814]
[1733209388261,0.0303,95651.0,95649.0,0.00156814]
[1733209388461,0.0303,95651.0,95642.0,0.0026]
[1733209388654,0.03039485,95651.0,95650.0,0.00579141]
[1733209389060,0.03039485,95651.0,95642.0,0.0026]
[1733209389061,0.052264,95643.0,95642.0,0.0026]
[1733209389254,0.052264,95643.0,95640.0,7.986e-05]
[1733209389255,0.052265,95641.0,95640.0,7.986e-05]
[1733209389454,0.262265,95641.0,95640.0,7.986e-05]
[1733209389655,0.36681228,95641.0,95640.0,7.986e-05]
[1733209390665,0.36981228,95641.0,95640.0,7.986e-05]
[1733209391765,0.36981228,95641.0,95623.0,0.0052]
[1733209391766,0.052269,95635.0,95623.0,0.0052]
[1733209391959,0.052279,95615.0,95614.0,0.0052]
[1733209392263,0.052279,95615.0,95602.0,0.15032]
[1733209392264,0.3608,95615.0,95602.0,0.15032]
[1733209392458,0.052282,95610.0,95602.0,0.15032]
[1733209392659,0.3608,95615.0,95602.0,0.15032]
[1733209392660,0.052283,95609.0,95602.0,0.15032]
[1733209392860,0.00012895,95609.0,95602.0,0.15032]
[1733209393074,0.052284,95607.0,95597.0,0.3608]
[1733209393857,0.00112895,95609.0,95605.0,0.006]
[1733209394463,0.052284,95607.0,95605.0,0.006]
[1733209394659,0.20877386,95606.0,95605.0,0.006]
[1733209394959,0.20877386,95606.0,95605.0,0.00232565]
[1733209395160,0.09660774,95606.0,95605.0,0.00232565]
[1733209395372,0.09660774,95606.0,95605.0,0.3668]
[1733209395568,0.00012895,95609.0,95608.0,0.052283]
[1733209396058,0.00012895,95609.0,95606.0,0.0314]
[1733209396256,0.00012895,95609.0,95605.0,0.51772]
[1733209396257,0.001,95606.0,95605.0,0.51772]
[1733209396461,0.18521814,95606.0,95605.0,0.3668]
[1733209396657,0.001,95606.0,95605.0,0.51716]
[1733209397070,0.00012895,95609.0,95608.0,0.005]
[1733209397666,0.18432067,95609.0,95608.0,0.005]
[1733209398561,0.23660367,95609.0,95606.0,0.15036]
[1733209398767,0.20578493,95607.0,95606.0,0.15036]
[1733209398970,0.052284,95607.0,95605.0,0.3658]
[1733209399466,0.052284,95607.0,95605.0,0.3608]
[1733209400074,0.09729478,95606.0,95605.0,0.3608]
[1733209400274,0.052284,95607.0,95605.0,0.3608]
[1733209400479,0.21,95606.0,95605.0,0.005]
[1733209400776,0.30692118,95606.0,95605.0,0.005]
[1733209401073,0.30692118,95606.0,95600.0,0.1]
[1733209401074,0.052287,95601.0,95600.0,0.1]
[1733209401262,0.052287,95601.0,95578.0,0.0626]
[1733209401263,0.052297,95583.0,95582.0,0.0052]
[1733209401573,0.052287,95601.0,95577.0,0.00012442]
[1733209401574,0.052299,95579.0,95577.0,0.00012442]
[1733209402362,0.00012485,95578.0,95577.0,0.00012442]
[1733209403170,0.00012485,95578.0,95577.0,0.00512442]
[1733209404263,0.15365973,95578.0,95577.0,0.00512442]
[1733209404599,0.00012485,95578.0,95577.0,0.36592442]
[1733209404969,0.00012485,95578.0,95577.0,0.36092442]
[1733209405172,0.00012485,95578.0,95577.0,0.41722442]
[1733209405875,0.0104,95582.0,95581.0,0.052298]
[1733209406079,0.15353488,95585.0,95584.0,0.052296]
[1733209406277,0.18424185,95593.0,95584.0,0.15356]
[1733209406464,0.18424185,95593.0,95592.0,0.413092]
[1733209406872,0.1842929,95593.0,95592.0,0.413092]
[1733209407466,5.105e-05,95593.0,95592.0,0.413092]
[1733209407865,0.06897105,95593.0,95592.0,0.413092]
[1733209408068,0.06897105,95593.0,95592.0,0.3608]
[1733209408375,0.06897105,95593.0,95584.0,0.052296]
[1733209408376,0.052293,95591.0,95584.0,0.052296]
[1733209408568,0.054893,95591.0,95584.0,0.052296]
[1733209408865,0.0026,95591.0,95581.0,0.3608]
[1733209409065,0.052293,95590.0,95584.0,0.052296]
[1733209409265,0.0026,95591.0,95581.0,0.3608]
[1733209409473,0.0026,95591.0,95585.0,0.052296]
[1733209409474,0.0036,95591.0,95585.0,0.052296]
[1733209409979,0.052294,95590.0,95584.0,0.005]
[1733209410180,0.0036,95591.0,95584.0,0.005]
[1733209410181,0.052294,95589.0,95584.0,0.005]
[1733209410378,0.052295,95588.0,95584.0,0.005]
[1733209410884,0.0036,95591.0,95585.0,0.052296]
[1733209411068,0.0036,95591.0,95589.0,0.052293]
[1733209411378,0.001,95590.0,95589.0,0.052293]
[1733209412070,0.0026,95591.0,95589.0,0.052293]
[1733209412270,0.0026,95591.0,95589.0,0.055293]
[1733209412980,0.0026,95591.0,95589.0,0.005]
[1733209412981,0.001,95590.0,95589.0,0.005]
[1733209413568,0.001,95590.0,95589.0,0.057294]
[1733209413873,0.001,95590.0,95589.0,0.005]
[1733209414580,0.054893,95591.0,95583.0,0.3608]
[1733209414581,0.052294,95589.0,95583.0,0.3608]
[1733209414781,0.052294,95589.0,95583.0,0.413097]
[1733209415567,0.052296,95584.0,95583.0,0.3608]
[1733209416479,0.262296,95584.0,95583.0,0.3608]
[1733209417475,0.3623125,95584.0,95583.0,0.3608]
[1733209417678,0.3633125,95584.0,95583.0,0.3658]
[1733209418075,0.3110165,95584.0,95583.0,0.3658]
[1733209418376,0.3110165,95584.0,95583.0,0.3608]
[1733209418377,0.21,95584.0,95583.0,0.3608]
[1733209418684,0.2158486,95585.0,95583.0,0.416097]
[1733209419187,0.2158486,95585.0,95577.0,0.00012442]
[1733209419188,0.31408878,95584.0,95577.0,0.00012442]
[1733209419374,0.31408878,95584.0,95559.0,0.3608]
[1733209419375,0.052306,95567.0,95566.0,0.0026]
[1733209419581,0.052306,95567.0,95559.0,0.3608]
[1733209419582,0.05231,95560.0,95559.0,0.3608]
[1733209419776,0.47837047,95560.0,95559.0,0.3608]
[1733209420079,0.47837047,95560.0,95551.0,0.052314]